fUSD/lending_fUSD_20250401
["ID","MTS","AMOUNT","RATE_DAILY","PERIOD"]
[356961266,1743498640012,-500.0,0.00055342,120]
[356961267,1743498640021,-500.0,0.00055342,120]
[356961268,1743498640031,-500.0,0.00055342,120]
[356961269,1743498640041,-819.7236136,0.00055342,120]
[356961270,1743498640051,-500.0,0.00055342,120]
[356961271,1743498640060,-500.0,0.00055342,120]
[356961272,1743498640070,-500.0,0.00055342,120]
[356961273,1743498640079,-500.0,0.00055342,120]
[356961274,1743498640092,-500.0,0.00055342,120]
[356961275,1743498640103,-572.10049053,0.00055342,120]
[356961276,1743498640113,-500.0,0.00055342,120]
[356961277,1743498640123,-500.0,0.00055342,120]
[356961278,1743498640133,-500.0,0.00055342,120]
[356961279,1743498640143,-500.0,0.00055342,120]
[356961280,1743498640153,-500.0,0.00055342,120]
[356961281,1743498640163,-500.0,0.00055342,120]
[356961282,1743498640172,-500.0,0.00055342,120]
[356961283,1743498640182,-354.44108965,0.00055342,120]
[356961284,1743498640192,-500.0,0.00055342,120]
[356961285,1743498640202,-500.0,0.00055342,120]
[356961286,1743498640212,-1299.96,0.00055342,12]
[356961287,1743498640222,-199.64497862,0.00055342,120]
[356961288,1743498640233,-500.0,0.00055342,120]
[356961289,1743498640243,-500.0,0.00055342,120]
[356961290,1743498640253,-500.0,0.00055342,120]
[356961291,1743498640262,-500.0,0.00055342,120]
[356961292,1743498640272,-150.0,0.00055342,120]
[356961293,1743498640282,-1613.54,0.00055342,30]
[356961294,1743498640291,-500.0,0.00055342,120]
[356961295,1743498640301,-500.0,0.00055342,120]
[356961296,1743498640310,-500.0,0.00055342,120]
[356961297,1743498640320,-500.0,0.00055342,120]
[356961298,1743498640329,-500.0,0.00055342,120]
[356961299,1743498640339,-500.0,0.00055342,120]
[356961300,1743498640349,-500.0,0.00055342,120]
[356961301,1743498640358,-500.0,0.00055342,120]
[356961302,1743498640368,-500.0,0.00055342,120]
[356961303,1743498640377,-500.0,0.00055342,120]
[356961304,1743498640387,-644.97919367,0.00055342,120]
[356961305,1743498640397,-414.30890433,0.00055342,120]
[356961306,1743498640406,-566.24,0.00055342,120]
[356961307,1743498640416,-500.0,0.00055342,120]
[356961309,1743498640425,-6189.59,0.00055342,120]
[356961311,1743498640434,-569.36,0.00055342,120]
[356961312,1743498640443,-574.33833894,0.00055342,120]
[356961314,1743498640453,-500.0,0.00055342,120]
[356961316,1743498640462,-456.53915371,0.00055342,120]
[356961318,1743498640472,-500.0,0.00055342,120]
[356961320,1743498640481,-500.0,0.00055342,120]
[356961322,1743498640490,-500.0,0.00055342,120]
[356961323,1743498640499,-601.51,0.00055342,120]
[356961325,1743498640509,-500.0,0.00055342,120]
[356961327,1743498640518,-500.0,0.00055342,120]
[356961329,1743498640528,-500.0,0.00055342,120]
[356961331,1743498640538,-500.0,0.00055342,120]
[356961333,1743498640547,-500.0,0.00055342,120]
[356961335,1743498640557,-500.0,0.00055342,120]
[356961337,1743498640566,-500.0,0.00055342,120]
[356961339,1743498640576,-500.0,0.00055342,120]
[356961341,1743498640585,-500.0,0.00055342,120]
[356961343,1743498640594,-500.0,0.00055342,120]
[356961345,1743498640604,-500.0,0.00055342,120]
[356961347,1743498640616,-500.0,0.00055342,120]
[356961349,1743498640626,-578.46,0.00055342,120]
[356961351,1743498640635,-500.0,0.00055342,120]
[356961353,1743498640644,-500.0,0.00055342,120]
[356961355,1743498640653,-500.0,0.00055342,120]
[356961357,1743498640663,-579.53,0.00055342,120]
[356961358,1743498640672,-500.0,0.00055342,120]
[356961360,1743498640681,-500.0,0.00055342,120]
[356961362,1743498640691,-184.65609457,0.00055342,120]
[356961365,1743498640701,-500.0,0.00055342,120]
[356961366,1743498640710,-500.0,0.00055342,120]
[356961368,1743498640720,-500.0,0.00055342,120]
[356961370,1743498640729,-2201.08,0.00055342,120]
[356961372,1743498640738,-500.0,0.00055342,120]
[356961374,1743498640748,-500.0,0.00055342,7]
[356961376,1743498640757,-500.0,0.00055342,120]
[356961378,1743498640767,-500.0,0.00055342,120]
[356961380,1743498640776,-500.0,0.00055342,120]
[356961382,1743498640785,-500.0,0.00055342,120]
[356961384,1743498640794,-500.0,0.00055342,120]
[356961386,1743498640803,-500.0,0.00055342,120]
[356961388,1743498640813,-500.0,0.00055342,120]
[356961390,1743498640823,-62869.05,0.00055342,7]
[356961392,1743498640832,-500.0,0.00055342,120]
[356961394,1743498640843,-1343.29,0.00055342,2]
[356961395,1743498640853,-500.0,0.00055342,120]
[356961397,1743498640863,-500.0,0.00055342,120]
[356961398,1743498640873,-500.0,0.00055342,120]
[356961399,1743498640886,-1784.02,0.00055342,120]
[356961400,1743498640896,-500.0,0.00055342,120]
[356961401,1743498640906,-500.0,0.00055342,120]
[356961402,1743498640915,-500.0,0.00055342,120]
[356961403,1743498640926,-500.0,0.00055342,120]
[356961404,1743498640937,-550.70634856,0.00055342,120]
[356961405,1743498640946,-500.0,0.00055342,120]
[356961406,1743498640958,-500.0,0.00055342,120]
[356961407,1743498640968,-500.0,0.00055342,120]
[356961408,1743498640977,-500.0,0.00055342,120]
[356961409,1743498640987,-577.75,0.00055342,120]
[356961410,1743498640996,-500.0,0.00055342,120]
[356961411,1743498641006,-500.0,0.00055342,120]
[356961412,1743498641016,-500.0,0.00055342,120]
[356961413,1743498641026,-500.0,0.00055342,120]
[356961414,1743498641035,-313.33759836,0.00055342,120]
[356961415,1743498641045,-719.39,0.00055342,2]
[356961416,1743498641055,-500.0,0.00055342,120]
[356961417,1743498641065,-500.0,0.00055342,120]
[356961418,1743498641075,-500.0,0.00055342,120]
[356961419,1743498641084,-500.0,0.00055342,120]
[356961420,1743498641094,-500.0,0.00055342,120]
[356961421,1743498641103,-500.0,0.00055342,2]
[356961422,1743498641112,-500.0,0.00055342,120]
[356961423,1743498641121,-500.0,0.00055342,120]
[356961424,1743498641131,-500.0,0.00055342,120]
[356961425,1743498641140,-294.35948762,0.00055342,120]
[356961426,1743498641150,-500.0,0.00055342,120]
[356961427,1743498641159,-500.0,0.00055342,100]
[356961428,1743498641169,-500.0,0.00055342,120]
[356961429,1743498641178,-3000.0,0.000555,120]
[356961430,1743498641187,-311.0,0.0005554,30]
[356961431,1743498641196,-359.35,0.00055657,2]
[356961432,1743498641206,-1942.45,0.0005576,30]
[356961433,1743498641215,-11571.8947785,0.0005577,4]
[356961434,1743498641225,-34715.6843356,0.0005578,4]
[356961435,1743498641234,-151.61,0.0005578,120]
[356961436,1743498641244,-5000.0,0.0005578,120]
[356961437,1743498641253,-88888.0,0.0005579,120]
[356961438,1743498641263,-200.0,0.000558,20]
[356961439,1743498641272,-1005.0,0.00055851,25]
[356961440,1743498641282,-1186.73858797,0.00055851,15]
[356961441,1743498641291,-11571.8947785,0.0005586,4]
[356961442,1743498641301,-34715.6843356,0.0005587,4]
[356961443,1743498641310,-8494.06831295,0.0005587,4]
[356961444,1743498641320,-155.15352759,0.00055873,15]
[356961445,1743498641329,-500.0,0.0005588,2]
[356961446,1743498641340,-57859.4738926,0.0005588,4]
[356961447,1743498641349,-67952.5465036,0.0005588,4]
[356961448,1743498641359,-151.61,0.0005588,120]
[356961449,1743498641368,-170.35175788,0.0005588,30]
[356961450,1743498641378,-500.0,0.0005589,120]
[356961451,1743498641387,-500.0,0.0005589,120]
[356961452,1743498641397,-762.68,0.0005589,120]
[356961453,1743498641406,-537.75323726,0.0005589,120]
[356961454,1743498641415,-262.94340833,0.0005589,120]
[356961455,1743498641425,-500.0,0.0005589,120]
[356961456,1743498641434,-500.0,0.0005589,120]
[356961457,1743498641443,-500.0,0.0005589,120]
[356961458,1743498641452,-500.0,0.0005589,120]
[356961459,1743498641462,-500.0,0.0005589,120]
[356961460,1743498641471,-500.0,0.0005589,120]
[356961461,1743498641480,-440.21412893,0.0005589,120]
[356961462,1743498641490,-500.0,0.0005589,120]
[356961463,1743498641500,-500.0,0.0005589,120]
[356961464,1743498641509,-500.0,0.0005589,120]
[356961465,1743498641518,-564.41396164,0.0005589,120]
[356961466,1743498641528,-500.0,0.0005589,120]
[356961467,1743498641537,-500.0,0.0005589,120]
[356961468,1743498641547,-500.0,0.0005589,120]
[356961469,1743498641556,-500.0,0.0005589,120]
[356961470,1743498641566,-450.31165236,0.0005589,120]
[356961471,1743498641576,-500.0,0.0005589,120]
[356961472,1743498641585,-500.0,0.0005589,120]
[356961473,1743498641595,-500.0,0.0005589,120]
[356961474,1743498641605,-1299.96,0.0005589,12]
[356961475,1743498641615,-500.0,0.0005589,120]
[356961476,1743498641624,-500.0,0.0005589,120]
[356961477,1743498641634,-500.0,0.0005589,120]
[356961478,1743498641643,-500.0,0.0005589,120]
[356961479,1743498641653,-150.0,0.0005589,120]
[356961480,1743498641663,-1613.54,0.0005589,30]
[356961481,1743498641672,-500.0,0.0005589,120]
[356961482,1743498641682,-518.38101316,0.0005589,120]
[356961483,1743498641692,-500.0,0.0005589,120]
[356961484,1743498641701,-500.0,0.0005589,120]
[356961485,1743498641711,-500.0,0.0005589,120]
[356961486,1743498641720,-604.35609222,0.0005589,120]
[356961487,1743498641730,-500.0,0.0005589,120]
[356961488,1743498641739,-308.14050013,0.0005589,120]
[356961489,1743498641748,-556.73072773,0.0005589,120]
[356961490,1743498641758,-500.0,0.0005589,120]
[356961491,1743498641767,-566.24,0.0005589,120]
[356961492,1743498641777,-500.0,0.0005589,120]
[356961493,1743498641786,-6189.59,0.0005589,120]
[356961494,1743498641796,-569.36,0.0005589,120]
[356961495,1743498641805,-500.0,0.0005589,120]
[356961496,1743498641815,-500.0,0.0005589,120]
[356961497,1743498641824,-500.0,0.0005589,120]
[356961498,1743498641833,-500.0,0.0005589,120]
[356961499,1743498641844,-601.51,0.0005589,120]
[356961500,1743498641854,-500.0,0.0005589,120]
[356961501,1743498641864,-500.0,0.0005589,120]
[356961502,1743498641874,-500.0,0.0005589,120]
[356961503,1743498641888,-500.0,0.0005589,120]
[356961504,1743498641897,-500.0,0.0005589,120]
[356961505,1743498641907,-500.0,0.0005589,120]
[356961506,1743498641918,-500.0,0.0005589,120]
[356961507,1743498641927,-11571.8947785,0.0005589,4]
[356961508,1743498641939,-229.79659669,0.0005589,120]
[356961509,1743498641949,-500.0,0.0005589,120]
[356961510,1743498641959,-386.61529942,0.0005589,120]
[356961511,1743498641970,-500.0,0.0005589,120]
[356961512,1743498641979,-500.0,0.0005589,120]
[356961513,1743498641989,-578.46,0.0005589,120]
[356961514,1743498641999,-500.0,0.0005589,120]
[356961515,1743498642009,-500.0,0.0005589,120]
[356961516,1743498642022,-500.0,0.0005589,120]
[356961517,1743498642031,-579.53,0.0005589,120]
[356961518,1743498642041,-500.0,0.0005589,120]
[356961519,1743498642050,-500.0,0.0005589,120]
[356961520,1743498642059,-500.0,0.0005589,120]
[356961521,1743498642068,-500.0,0.0005589,120]
[356961522,1743498642077,-500.0,0.0005589,120]
[356961523,1743498642086,-2201.08,0.0005589,120]
[356961524,1743498642131,-500.0,0.0005589,120]
[356961525,1743498642140,-500.0,0.0005589,7]
[356961526,1743498642149,-500.0,0.0005589,120]
[356961527,1743498642158,-500.0,0.0005589,120]
[356961528,1743498642167,-500.0,0.0005589,120]
[356961529,1743498642177,-500.0,0.0005589,120]
[356961530,1743498642186,-500.0,0.0005589,120]
[356961531,1743498642196,-500.0,0.0005589,120]
[356961532,1743498642206,-500.0,0.0005589,120]
[356961533,1743498642215,-62869.05,0.0005589,7]
[356961534,1743498642225,-500.0,0.0005589,120]
[356961536,1743498642234,-1343.29,0.0005589,2]
[356961538,1743498642243,-500.0,0.0005589,120]
[356961540,1743498642252,-500.0,0.0005589,120]
[356961542,1743498642261,-500.0,0.0005589,120]
[356961543,1743498642271,-1784.02,0.0005589,120]
[356961544,1743498642280,-500.0,0.0005589,120]
[356961545,1743498642290,-623.92087479,0.0005589,120]
[356961546,1743498642299,-500.0,0.0005589,120]
[356961547,1743498642308,-500.0,0.0005589,120]
[356961548,1743498642317,-500.0,0.0005589,120]
[356961549,1743498642326,-202.22198447,0.0005589,120]
[356961550,1743498642336,-500.0,0.0005589,120]
[356961551,1743498642346,-500.0,0.0005589,120]
[356961552,1743498642356,-577.75,0.0005589,120]
[356961553,1743498642365,-500.0,0.0005589,120]
[356961555,1743498642375,-500.0,0.0005589,120]
[356961557,1743498642385,-500.0,0.0005589,120]
[356961559,1743498642394,-500.0,0.0005589,120]
[356961561,1743498642403,-719.39,0.0005589,2]
[356961563,1743498642413,-500.0,0.0005589,120]
[356961565,1743498642422,-500.0,0.0005589,120]
[356961567,1743498642432,-500.0,0.0005589,120]
[356961568,1743498642441,-500.0,0.0005589,120]
[356961569,1743498642450,-500.0,0.0005589,120]
[356961570,1743498642459,-500.0,0.0005589,2]
[356961571,1743498642469,-239.45242112,0.0005589,120]
[356961572,1743498642479,-500.0,0.0005589,120]
[356961573,1743498642489,-500.0,0.0005589,120]
[356961574,1743498642498,-500.0,0.0005589,120]
[356961575,1743498642507,-500.0,0.0005589,100]
[356961576,1743498642516,-500.0,0.0005589,120]
[356961577,1743498642526,-4264.42,0.000559,2]
[356961578,1743498642535,-500.0,0.000559,20]
[356961579,1743498642544,-11571.8947785,0.0005596,4]
[356961580,1743498642553,-8494.06831295,0.0005596,4]
[356961581,1743498642562,-23143.7895571,0.0005597,4]
[356961582,1743498642571,-25482.2049388,0.0005597,4]
[356961583,1743498642581,-168.01708873,0.00055973,15]
[356961584,1743498642591,-500.0,0.00055973,2]
[356961585,1743498642600,-500.0,0.0005598,2]
[356961586,1743498642609,-34715.6843356,0.0005598,4]
[356961587,1743498642618,-42470.3415647,0.0005598,4]
[356961588,1743498642627,-1228.27305136,0.00055989,120]
[356961589,1743498642637,-76446.6148165,0.0005599,4]
[356961590,1743498642646,-500.0,0.00055999,2]
[356961591,1743498642655,-1000.0,0.00055999,120]
[356961592,1743498642664,-1000.0,0.00055999,120]
[356961593,1743498642673,-1000.0,0.00055999,120]
[356961594,1743498642683,-1000.0,0.00055999,120]
[356961595,1743498642691,-517.26259055,0.00055999,120]
[356961596,1743498642701,-151.0,0.00055999,120]
[356961597,1743498642710,-56380.61844654,0.00056,120]
[356961598,1743498642754,-36334.039,0.00056,120]
[356961599,1743498642765,-668.53297564,0.00056,120]
[356961600,1743498642778,-10866.80855648,0.00056,120]
[356961601,1743498642906,-150.0,0.00051479,120]
[356961602,1743498642915,-59984.81102134,0.00056,120]
[356961603,1743498642926,-190.331281,0.00056,120]
[356961604,1743498642935,-151.0,0.00056,120]
[356961605,1743498642944,-151.0,0.00056,120]
[356961606,1743498642955,-151.0,0.00056,120]
[356961607,1743498642965,-151.0,0.00056,120]
[356961608,1743498642975,-156.188509,0.00056,120]
[356961609,1743498642985,-151.0,0.00056,120]
[356961610,1743498642994,-155.800075,0.00056,120]
[356961611,1743498643003,-151.0,0.00056,120]
[356961612,1743498643012,-151.0,0.00056,120]
[356961613,1743498643021,-151.0,0.00056,120]
[356961614,1743498643031,-151.0,0.00056,120]
[356961615,1743498643040,-151.0,0.00056,120]
[356961616,1743498643049,-151.0,0.00056,120]
[356961617,1743498643059,-205.04290442,0.00056001,63]
[356961618,1743498643069,-311.0,0.00056101,30]
[356961619,1743498643078,-8494.06831295,0.00056211,4]
[356961620,1743498643087,-444.31,0.00056219,30]
[356961621,1743498643098,-783.26,0.00056219,30]
[356961622,1743498643107,-444.31,0.00056219,30]
[356961623,1743498643116,-783.26,0.00056219,30]
[356961624,1743498643126,-783.26,0.00056219,30]
[356961625,1743498643135,-444.31,0.00056219,30]
[356961626,1743498643146,-783.26,0.00056219,30]
[356961627,1743498643155,-443.27,0.00056219,30]
[356961628,1743498643164,-780.91,0.00056219,30]
[356961629,1743498643174,-1238.8547968,0.00056221,120]
[356961630,1743498643184,-8494.06831295,0.00056398,4]
[356961631,1743498643193,-173.01561853,0.00056407,15]
[356961632,1743498643203,-59458.4781906,0.00056428,4]
[356961633,1743498643212,-1186.73858797,0.00056429,15]
[356961634,1743498643221,-828.01423692,0.00056437,120]
[356961635,1743498643230,-760.58,0.00056437,120]
[356961636,1743498643241,-500.0,0.00056437,2]
[356961637,1743498643251,-272.35416453,0.00056438,120]
[356961638,1743498643260,-500.0,0.00056438,120]
[356961639,1743498643270,-762.68,0.00056438,120]
[356961640,1743498643279,-500.0,0.00056438,120]
[356961641,1743498643289,-500.0,0.00056438,120]
[356961642,1743498643298,-500.0,0.00056438,120]
[356961643,1743498643308,-500.0,0.00056438,120]
[356961644,1743498643318,-500.0,0.00056438,120]
[356961645,1743498643327,-500.0,0.00056438,120]
[356961646,1743498643336,-500.0,0.00056438,120]
[356961647,1743498643346,-206.96706985,0.00056438,120]
[356961648,1743498643355,-500.0,0.00056438,120]
[356961649,1743498643365,-500.0,0.00056438,120]
[356961650,1743498643376,-461.2602154,0.00056438,120]
[356961651,1743498643386,-345.20122477,0.00056438,120]
[356961652,1743498643396,-500.0,0.00056438,120]
[356961653,1743498643405,-500.0,0.00056438,120]
[356961654,1743498643415,-500.0,0.00056438,120]
[356961655,1743498643424,-500.0,0.00056438,120]
[356961656,1743498643436,-1299.96,0.00056438,12]
[356961657,1743498643447,-500.0,0.00056438,120]
[356961658,1743498643457,-500.0,0.00056438,120]
[356961660,1743498643466,-500.0,0.00056438,120]
[356961662,1743498643475,-500.0,0.00056438,120]
[356961663,1743498643486,-150.0,0.00056438,120]
[356961665,1743498643495,-1613.54,0.00056438,30]
[356961668,1743498643505,-500.0,0.00056438,120]
[356961671,1743498643514,-500.0,0.00056438,120]
[356961674,1743498643524,-500.0,0.00056438,120]
[356961677,1743498643534,-500.0,0.00056438,120]
[356961680,1743498643543,-500.0,0.00056438,120]
[356961681,1743498643552,-566.24,0.00056438,120]
[356961683,1743498643562,-500.0,0.00056438,120]
[356961685,1743498643572,-6189.59,0.00056438,120]
[356961687,1743498643581,-569.36,0.00056438,120]
[356961689,1743498643593,-500.0,0.00056438,120]
[356961692,1743498643602,-500.0,0.00056438,120]
[356961695,1743498643611,-151.33285175,0.00056438,120]
[356961698,1743498643621,-500.0,0.00056438,120]
[356961699,1743498643637,-601.51,0.00056438,120]
[356961700,1743498643657,-500.0,0.00056438,120]
[356961701,1743498643675,-500.0,0.00056438,120]
[356961702,1743498643684,-500.0,0.00056438,120]
[356961703,1743498643693,-500.0,0.00056438,120]
[356961704,1743498643705,-500.0,0.00056438,120]
[356961705,1743498643714,-500.0,0.00056438,120]
[356961706,1743498643724,-500.0,0.00056438,120]
[356961707,1743498643734,-500.0,0.00056438,120]
[356961708,1743498643743,-500.0,0.00056438,120]
[356961709,1743498643753,-500.0,0.00056438,120]
[356961710,1743498643762,-578.46,0.00056438,120]
[356961711,1743498643774,-500.0,0.00056438,120]
[356961712,1743498643785,-500.0,0.00056438,120]
[356961713,1743498643795,-403.19399634,0.00056438,120]
[356961714,1743498643805,-579.53,0.00056438,120]
[356961715,1743498643815,-500.0,0.00056438,120]
[356961716,1743498643824,-500.0,0.00056438,120]
[356961717,1743498643834,-500.0,0.00056438,120]
[356961718,1743498643847,-500.0,0.00056438,120]
[356961719,1743498643862,-500.0,0.00056438,120]
[356961720,1743498643872,-2201.08,0.00056438,120]
[356961721,1743498643888,-500.0,0.00056438,120]
[356961722,1743498643903,-500.0,0.00056438,7]
[356961723,1743498643913,-500.0,0.00056438,120]
[356961724,1743498643923,-500.0,0.00056438,120]
[356961725,1743498643932,-500.0,0.00056438,120]
[356961726,1743498643941,-500.0,0.00056438,120]
[356961727,1743498643951,-500.0,0.00056438,120]
[356961728,1743498643961,-500.0,0.00056438,120]
[356961729,1743498643970,-500.0,0.00056438,120]
[356961730,1743498643979,-22315.49240703,0.00056438,7]
[356961731,1743498644060,-20417.91172697,0.00056438,7]
[356961732,1743498644071,-1326.9,0.00056438,7]
[356961733,1743498644084,-4629.89200348,0.00056438,7]
[356961734,1743498644145,-373.5132,0.00056438,7]
[356961735,1743498644156,-1218.52735746,0.00056438,7]
[356961736,1743498644175,-2608.59171142,0.00056438,7]
[356961737,1743498644187,-521.8962786,0.00056438,7]
[356961738,1743498645473,-9456.32531504,0.00056438,7]
[356961740,1743498645483,-500.0,0.00056438,120]
[356961742,1743498645493,-1343.29,0.00056438,2]
[356961744,1743498645503,-500.0,0.00056438,120]
[356961746,1743498645513,-151.0,0.00056438,120]
[356961748,1743498645523,-500.0,0.00056438,120]
[356961750,1743498645533,-500.0,0.00056438,120]
[356961752,1743498645542,-1784.02,0.00056438,120]
[356961753,1743498645552,-500.0,0.00056438,120]
[356961754,1743498645561,-500.0,0.00056438,120]
[356961755,1743498645571,-500.0,0.00056438,120]
[356961756,1743498645581,-500.0,0.00056438,120]
[356961757,1743498645591,-500.0,0.00056438,120]
[356961758,1743498645601,-500.0,0.00056438,120]
[356961759,1743498645612,-577.75,0.00056438,120]
[356961760,1743498645621,-500.0,0.00056438,120]
[356961761,1743498645631,-500.0,0.00056438,120]
[356961762,1743498645640,-281.46492932,0.00056438,120]
[356961763,1743498645650,-500.0,0.00056438,120]
[356961764,1743498645661,-719.39,0.00056438,2]
[356961765,1743498645670,-500.0,0.00056438,120]
[356961766,1743498645679,-500.0,0.00056438,120]
[356961767,1743498645689,-500.0,0.00056438,120]
[356961768,1743498645698,-565.13570631,0.00056438,120]
[356961769,1743498645709,-500.0,0.00056438,120]
[356961771,1743498645719,-500.0,0.00056438,2]
[356961772,1743498645728,-500.0,0.00056438,120]
[356961773,1743498645738,-269.5247472,0.00056438,120]
[356961774,1743498645750,-230.4752528,0.00056438,120]
[356961775,1743498645759,-500.0,0.00056438,120]
[356961776,1743498645769,-500.0,0.00056438,100]
[356961777,1743498645779,-457.78216068,0.00056438,120]
[356961778,1743498645796,-150.0,0.000535,120]
[356961779,1743498645805,-42.21783932,0.00056438,120]
[356961780,1743498645815,-350.6321687,0.0005649,4]
[356961781,1743498645827,-8143.43614425,0.0005649,4]
[356961782,1743498645836,-286.95107975,0.000565,120]
[356961783,1743498645943,-500.0,0.00054794,120]
[356961784,1743498645954,-2713.04892025,0.000565,120]
[356961785,1743498645964,-311.0,0.00056662,30]
[356961786,1743498645973,-311.417765,0.000567,53]
[356961787,1743498645983,-547.54,0.00056888,120]
[356961788,1743498645992,-800.0,0.000569,20]
[356961789,1743498646002,-150.0,0.00056904,30]
[356961790,1743498646012,-886.96,0.00056904,30]
[356961791,1743498646022,-151.47,0.00056904,30]
[356961792,1743498646032,-223.15,0.00056904,30]
[356961793,1743498646041,-151.92,0.00056904,30]
[356961794,1743498646053,-150.0,0.00056904,30]
[356961795,1743498646063,-150.0,0.00056904,30]
[356961796,1743498646074,-150.0,0.00056904,30]
[356961797,1743498646084,-150.0,0.00056904,30]
[356961798,1743498646094,-150.0,0.00056904,30]
[356961799,1743498646104,-150.0,0.00056904,30]
[356961800,1743498646115,-500.3479986,0.00056973,15]
[356961801,1743498646124,-209.06913476,0.00056973,15]
[356961802,1743498646135,-501.06533207,0.00056973,14]
[356961803,1743498646146,-500.0,0.00056973,15]
[356961804,1743498646156,-8494.06831295,0.00056976,4]
[356961805,1743498646166,-500.0,0.00056985,2]
[356961806,1743498646176,-500.0,0.00056986,120]
[356961807,1743498646185,-762.68,0.00056986,120]
[356961808,1743498646195,-500.0,0.00056986,120]
[356961809,1743498646207,-500.0,0.00056986,120]
[356961810,1743498646217,-500.0,0.00056986,120]
[356961811,1743498646227,-500.0,0.00056986,120]
[356961812,1743498646237,-500.0,0.00056986,120]
[356961813,1743498646247,-206.21709223,0.00056986,120]
[356961814,1743498646380,-500.0,0.00056986,120]
[356961815,1743498646393,-500.0,0.00056986,120]
[356961816,1743498646403,-411.15444926,0.00056986,120]
[356961817,1743498646412,-500.0,0.00056986,120]
[356961818,1743498646421,-264.50521586,0.00056986,120]
[356961819,1743498646431,-648.59406269,0.00056986,120]
[356961820,1743498646440,-286.16498866,0.00056986,120]
[356961821,1743498646449,-1299.96,0.00056986,12]
[356961822,1743498646459,-500.0,0.00056986,120]
[356961823,1743498646469,-500.0,0.00056986,120]
[356961824,1743498646479,-500.0,0.00056986,120]
[356961825,1743498646488,-500.0,0.00056986,120]
[356961826,1743498646497,-150.0,0.00056986,120]
[356961827,1743498646507,-1613.54,0.00056986,30]
[356961828,1743498646516,-500.0,0.00056986,120]
[356961829,1743498646525,-500.0,0.00056986,120]
[356961830,1743498646534,-500.0,0.00056986,120]
[356961831,1743498646543,-442.52705811,0.00056986,120]
[356961832,1743498646552,-600.0378894,0.00056986,120]
[356961833,1743498646561,-500.0,0.00056986,120]
[356961834,1743498646571,-6189.59,0.00056986,120]
[356961835,1743498646580,-569.36,0.00056986,120]
[356961836,1743498646589,-500.0,0.00056986,120]
[356961837,1743498646599,-500.0,0.00056986,120]
[356961838,1743498646608,-500.0,0.00056986,120]
[356961839,1743498646618,-601.51,0.00056986,120]
[356961840,1743498646629,-500.0,0.00056986,120]
[356961841,1743498646639,-500.0,0.00056986,120]
[356961842,1743498646648,-500.0,0.00056986,120]
[356961843,1743498646658,-500.0,0.00056986,120]
[356961844,1743498646667,-500.0,0.00056986,120]
[356961845,1743498646677,-500.0,0.00056986,120]
[356961846,1743498646686,-500.0,0.00056986,120]
[356961847,1743498646696,-500.0,0.00056986,120]
[356961848,1743498646706,-500.0,0.00056986,120]
[356961849,1743498646715,-500.0,0.00056986,120]
[356961850,1743498646725,-578.46,0.00056986,120]